[Event "Late-Titled-Tuesday-Blitz-May-28-2024"]
[Site "Chess.com"]
[Date "2024.05.28"]
[Round "9"]
[White "BabageldiAnnaberdiyev"]
[Black "kalinchick"]
[Result "0-1"]
[WhiteElo "2563"]
[BlackElo "2381"]
[TimeControl "180+1"]
[EndTime "15:46:58 PDT"]
[Termination "kalinchick won on time"]

1. e4 {[%clk 0:03:00.9]} 1... e6 {[%clk 0:02:55.6]} 2. d4 {[%clk 0:03:00]} 2...
d5 {[%clk 0:02:56.2]} 3. e5 {[%clk 0:03:00.4]} 3... c5 {[%clk 0:02:56.1]} 4. c3
{[%clk 0:03:01.2]} 4... Nc6 {[%clk 0:02:56.6]} 5. Nf3 {[%clk 0:03:01.6]} 5...
Nge7 {[%clk 0:02:56.6]} 6. a3 {[%clk 0:03:01.3]} 6... Nf5 {[%clk 0:02:56.6]} 7.
b4 {[%clk 0:03:00.6]} 7... cxd4 {[%clk 0:02:57.2]} 8. cxd4 {[%clk 0:03:01.2]}
8... Bd7 {[%clk 0:02:57]} 9. Bb2 {[%clk 0:03:00]} 9... Qb6 {[%clk 0:02:54.6]}
10. g4 {[%clk 0:02:58.1]} 10... Nfe7 {[%clk 0:02:50.2]} 11. Nc3 {[%clk
0:02:56.7]} 11... Na5 {[%clk 0:02:34.5]} 12. Nd2 {[%clk 0:02:55.6]} 12... Nac6
{[%clk 0:01:51.2]} 13. Na4 {[%clk 0:02:51.3]} 13... Qd8 {[%clk 0:01:46.2]} 14.
Nc5 {[%clk 0:02:49.1]} 14... Rb8 {[%clk 0:01:32.9]} 15. Rc1 {[%clk 0:02:47.4]}
15... Ng6 {[%clk 0:01:27.7]} 16. Nf3 {[%clk 0:02:36.4]} 16... Be7 {[%clk
0:01:26.9]} 17. Nxd7 {[%clk 0:02:26.6]} 17... Qxd7 {[%clk 0:01:26.6]} 18. h4
{[%clk 0:02:27.2]} 18... h5 {[%clk 0:01:24.4]} 19. g5 {[%clk 0:02:23.5]} 19...
Rc8 {[%clk 0:01:11]} 20. Qd2 {[%clk 0:02:20.1]} 20... Bd8 {[%clk 0:01:03.4]} 21.
Bd3 {[%clk 0:02:08.7]} 21... Nge7 {[%clk 0:00:58.6]} 22. O-O {[%clk 0:01:52.6]}
22... g6 {[%clk 0:00:58.6]} 23. Rc2 {[%clk 0:01:47.6]} 23... O-O {[%clk
0:00:53]} 24. Rfc1 {[%clk 0:01:48]} 24... Bb6 {[%clk 0:00:52.1]} 25. Kg2 {[%clk
0:01:44.5]} 25... Nb8 {[%clk 0:00:40.9]} 26. Ng1 {[%clk 0:01:13.1]} 26... Rxc2
{[%clk 0:00:38.8]} 27. Rxc2 {[%clk 0:01:14]} 27... Rc8 {[%clk 0:00:38.8]} 28.
Ne2 {[%clk 0:01:14.6]} 28... Rxc2 {[%clk 0:00:36.8]} 29. Qxc2 {[%clk 0:01:15.5]}
29... Qc6 {[%clk 0:00:35.2]} 30. Qb3 {[%clk 0:01:11.5]} 30... Nd7 {[%clk
0:00:31.1]} 31. a4 {[%clk 0:01:09]} 31... a5 {[%clk 0:00:22.2]} 32. b5 {[%clk
0:01:07.8]} 32... Qc8 {[%clk 0:00:19.5]} 33. Ba3 {[%clk 0:01:08.3]} 33... Bd8
{[%clk 0:00:17.4]} 34. Bd6 {[%clk 0:00:51.3]} 34... Nf8 {[%clk 0:00:15.9]} 35.
Qc3 {[%clk 0:00:48.5]} 35... Qxc3 {[%clk 0:00:14.8]} 36. Nxc3 {[%clk 0:00:49.4]}
36... Nc8 {[%clk 0:00:14.4]} 37. Bc5 {[%clk 0:00:44.8]} 37... Nd7 {[%clk
0:00:15]} 38. Ba3 {[%clk 0:00:42.2]} 38... Be7 {[%clk 0:00:15.5]} 39. Bb2 {[%clk
0:00:39.7]} 39... Ncb6 {[%clk 0:00:15.1]} 40. Bc2 {[%clk 0:00:37.9]} 40... Kf8
{[%clk 0:00:15.2]} 41. Kf3 {[%clk 0:00:35.9]} 41... Nc4 {[%clk 0:00:15.8]} 42.
Bc1 {[%clk 0:00:34.9]} 42... Ndb6 {[%clk 0:00:14.8]} 43. Ke2 {[%clk 0:00:33.8]}
43... Bb4 {[%clk 0:00:14.6]} 44. Kd3 {[%clk 0:00:32.6]} 44... Ke7 {[%clk
0:00:15.1]} 45. Bb3 {[%clk 0:00:27.4]} 45... Ba3 {[%clk 0:00:12.3]} 46. Bxa3+
{[%clk 0:00:21.4]} 46... Nxa3 {[%clk 0:00:12]} 47. Nd1 {[%clk 0:00:19]} 47...
Nac4 {[%clk 0:00:12]} 48. Ne3 {[%clk 0:00:19.5]} 48... Nb2+ {[%clk 0:00:10.5]}
49. Kc2 {[%clk 0:00:18.1]} 49... N2xa4 {[%clk 0:00:11.4]} 50. f4 {[%clk
0:00:17.5]} 50... Kf8 {[%clk 0:00:08.4]} 51. Nd1 {[%clk 0:00:14.8]} 51... Ke7
{[%clk 0:00:08.4]} 52. Kb1 {[%clk 0:00:15.2]} 52... Nc4 {[%clk 0:00:08.2]} 53.
Bxa4 {[%clk 0:00:13]} 53... Nd2+ {[%clk 0:00:06.2]} 54. Kc2 {[%clk 0:00:12.7]}
54... Nf3 {[%clk 0:00:07.1]} 55. Kd3 {[%clk 0:00:12.1]} 55... Nxh4 {[%clk
0:00:08]} 56. Ke2 {[%clk 0:00:11.1]} 56... Nf5 {[%clk 0:00:06.7]} 57. Kd3 {[%clk
0:00:09.8]} 57... h4 {[%clk 0:00:06.8]} 58. Nf2 {[%clk 0:00:10.3]} 58... Kd8
{[%clk 0:00:04.9]} 59. b6 {[%clk 0:00:10.8]} 59... Ne7 {[%clk 0:00:04]} 60. Ng4
{[%clk 0:00:09]} 60... Nc8 {[%clk 0:00:04.2]} 61. Bd1 {[%clk 0:00:05.3]} 61...
Nxb6 {[%clk 0:00:03.5]} 62. Nf2 {[%clk 0:00:05.7]} 62... Nc8 {[%clk 0:00:02.3]}
63. Kc3 {[%clk 0:00:06.2]} 63... b5 {[%clk 0:00:02.7]} 64. Be2 {[%clk
0:00:06.3]} 64... Na7 {[%clk 0:00:01]} 65. Kb3 {[%clk 0:00:07.2]} 65... Kc7
{[%clk 0:00:01.2]} 66. Bg4 {[%clk 0:00:05.9]} 66... Kb6 {[%clk 0:00:02.1]} 67.
Nd1 {[%clk 0:00:05.8]} 67... a4+ {[%clk 0:00:03]} 68. Ka3 {[%clk 0:00:05.4]}
68... Nc6 {[%clk 0:00:03.9]} 69. Ne3 {[%clk 0:00:05.6]} 69... Nxd4 {[%clk
0:00:04.8]} 70. Ng2 {[%clk 0:00:05.1]} 70... Kc5 {[%clk 0:00:05.3]} 71. Nxh4
{[%clk 0:00:05.1]} 71... Nc6 {[%clk 0:00:04.7]} 72. Nf3 {[%clk 0:00:06]} 72...
Kc4 {[%clk 0:00:04.2]} 73. Nd2+ {[%clk 0:00:06]} 73... Kd3 {[%clk 0:00:04.5]}
74. Nf3 {[%clk 0:00:04.9]} 74... Ke4 {[%clk 0:00:05.4]} 75. Ne1 {[%clk
0:00:04.1]} 75... Kxf4 {[%clk 0:00:06.1]} 76. Be2 {[%clk 0:00:04.7]} 76... Nxe5
{[%clk 0:00:06]} 77. Bxb5 {[%clk 0:00:04.6]} 77... Kxg5 {[%clk 0:00:06.9]} 78.
Kxa4 {[%clk 0:00:04.5]} 78... Kf4 {[%clk 0:00:07.8]} 79. Be8 {[%clk 0:00:04.6]}
79... f6 {[%clk 0:00:07]} 80. Nc2 {[%clk 0:00:05]} 80... g5 {[%clk 0:00:07.6]}
81. Nd4 {[%clk 0:00:05.2]} 81... Nf3 {[%clk 0:00:06.2]} 82. Nxe6+ {[%clk
0:00:06.1]} 82... Ke5 {[%clk 0:00:06.3]} 83. Nc5 {[%clk 0:00:06.9]} 83... g4
{[%clk 0:00:06.1]} 84. Bd7 {[%clk 0:00:07.4]} 84... g3 {[%clk 0:00:05.8]} 85.
Bh3 {[%clk 0:00:08.3]} 85... Ng1 {[%clk 0:00:05.1]} 86. Bg2 {[%clk 0:00:08.4]}
86... f5 {[%clk 0:00:05.7]} 87. Nd3+ {[%clk 0:00:08.3]} 87... Kd4 {[%clk
0:00:05.8]} 88. Nf4 {[%clk 0:00:09]} 88... Ke3 {[%clk 0:00:03.8]} 89. Nxd5+
{[%clk 0:00:09]} 89... Kf2 {[%clk 0:00:04.4]} 90. Bh1 {[%clk 0:00:09]} 90... Ne2
{[%clk 0:00:04.1]} 91. Kb5 {[%clk 0:00:07.2]} 91... f4 {[%clk 0:00:04.5]} 92.
Kc4 {[%clk 0:00:06.5]} 92... f3 {[%clk 0:00:04.6]} 93. Kd3 {[%clk 0:00:06.8]}
93... g2 {[%clk 0:00:05.2]} 94. Bxg2 {[%clk 0:00:07.1]} 94... fxg2 {[%clk
0:00:06.1]} 95. Nf4 {[%clk 0:00:05.7]} 95... Nxf4+ {[%clk 0:00:04.8]} 0-1

[Event "Late-Titled-Tuesday-Blitz-May-28-2024"]
[Site "Chess.com"]
[Date "2024.05.28"]
[Round "9"]
[White "Oleg_Papayan"]
[Black "MeisterJabo"]
[Result "1/2-1/2"]
[WhiteElo "2604"]
[BlackElo "2496"]
[TimeControl "180+1"]
[EndTime "15:47:34 PDT"]
[Termination "Game drawn by 50-move rule"]

1. e4 {[%clk 0:03:00.9]} 1... e5 {[%clk 0:02:58.2]} 2. Nf3 {[%clk 0:03:00.7]}
2... Nf6 {[%clk 0:02:56.7]} 3. Nc3 {[%clk 0:02:59.9]} 3... Nc6 {[%clk
0:02:56.6]} 4. d4 {[%clk 0:03:00]} 4... exd4 {[%clk 0:02:56.7]} 5. Nxd4 {[%clk
0:03:00.9]} 5... Bb4 {[%clk 0:02:57.1]} 6. Nxc6 {[%clk 0:03:00.2]} 6... bxc6
{[%clk 0:02:58]} 7. Bd3 {[%clk 0:03:00.5]} 7... d5 {[%clk 0:02:57.3]} 8. exd5
{[%clk 0:03:01.4]} 8... O-O {[%clk 0:02:57.3]} 9. O-O {[%clk 0:03:01.5]} 9...
Bg4 {[%clk 0:02:56.3]} 10. f3 {[%clk 0:03:00.1]} 10... Bh5 {[%clk 0:02:56.7]}
11. dxc6 {[%clk 0:03:00.3]} 11... Qd4+ {[%clk 0:02:54.3]} 12. Kh1 {[%clk
0:03:00.7]} 12... Bxc3 {[%clk 0:02:55.2]} 13. bxc3 {[%clk 0:03:01.1]} 13... Qxc3
{[%clk 0:02:56.1]} 14. Rb1 {[%clk 0:02:57.8]} 14... Bg6 {[%clk 0:02:55.9]} 15.
Bxg6 {[%clk 0:02:19.1]} 15... hxg6 {[%clk 0:02:56.8]} 16. Bg5 {[%clk 0:02:11.2]}
16... Rfd8 {[%clk 0:02:43.3]} 17. Qe2 {[%clk 0:02:04.6]} 17... Qxc6 {[%clk
0:02:43.1]} 18. Rb3 {[%clk 0:01:56.7]} 18... Re8 {[%clk 0:02:40.7]} 19. Qf2
{[%clk 0:01:51.1]} 19... Nd5 {[%clk 0:02:29.5]} 20. Qd4 {[%clk 0:01:26.6]} 20...
Re2 {[%clk 0:02:23.4]} 21. c4 {[%clk 0:01:26.5]} 21... Nb6 {[%clk 0:02:17.1]}
22. c5 {[%clk 0:01:26.8]} 22... Nd7 {[%clk 0:02:06.1]} 23. Re3 {[%clk
0:01:14.3]} 23... Re8 {[%clk 0:01:59.6]} 24. Rxe8+ {[%clk 0:01:10]} 24... Rxe8
{[%clk 0:02:00.5]} 25. Be3 {[%clk 0:01:06.1]} 25... Re5 {[%clk 0:01:56.7]} 26.
Rc1 {[%clk 0:00:56.5]} 26... Qe6 {[%clk 0:01:52.2]} 27. Bg1 {[%clk 0:00:53.1]}
27... Rd5 {[%clk 0:01:48.6]} 28. Qa4 {[%clk 0:00:50.8]} 28... Rd2 {[%clk
0:01:25.1]} 29. Qxa7 {[%clk 0:00:45.3]} 29... c6 {[%clk 0:01:12.5]} 30. Qc7
{[%clk 0:00:28.1]} 30... Qxa2 {[%clk 0:00:17.4]} 31. Qxc6 {[%clk 0:00:23.8]}
31... Nf6 {[%clk 0:00:09.3]} 32. Qc8+ {[%clk 0:00:21.9]} 32... Kh7 {[%clk
0:00:09.6]} 33. Qh3+ {[%clk 0:00:22.7]} 33... Kg8 {[%clk 0:00:07.2]} 34. c6
{[%clk 0:00:23.6]} 34... Rc2 {[%clk 0:00:06.7]} 35. Rxc2 {[%clk 0:00:12]} 35...
Qxc2 {[%clk 0:00:06.6]} 36. Qc8+ {[%clk 0:00:12.9]} 36... Kh7 {[%clk 0:00:06.4]}
37. Qb7 {[%clk 0:00:13.8]} 37... Nd5 {[%clk 0:00:05.4]} 38. Qd7 {[%clk
0:00:07.4]} 38... Nf4 {[%clk 0:00:04.1]} 39. Qg4 {[%clk 0:00:05.6]} 39... Qc1
{[%clk 0:00:02.1]} 40. h4 {[%clk 0:00:01.4]} 40... f5 {[%clk 0:00:01.3]} 41. Qg5
{[%clk 0:00:01.2]} 41... Qd2 {[%clk 0:00:01.1]} 42. c7 {[%clk 0:00:01]} 42...
Qc1 {[%clk 0:00:01]} 43. c8=Q {[%clk 0:00:01.3]} 43... Qxc8 {[%clk 0:00:01.9]}
44. Qxf4 {[%clk 0:00:01.6]} 44... Qd7 {[%clk 0:00:02.6]} 45. Qg5 {[%clk
0:00:02.4]} 45... Qe6 {[%clk 0:00:01.9]} 46. Kh2 {[%clk 0:00:03.3]} 46... Qe5+
{[%clk 0:00:02]} 47. Qg3 {[%clk 0:00:03]} 47... Qe6 {[%clk 0:00:02.9]} 48. f4
{[%clk 0:00:03.1]} 48... Qe2 {[%clk 0:00:03.3]} 49. Kh3 {[%clk 0:00:03.5]} 49...
Qe4 {[%clk 0:00:03.5]} 50. Qf3 {[%clk 0:00:03.7]} 50... Qc2 {[%clk 0:00:03.5]}
51. Bf2 {[%clk 0:00:03.8]} 51... Qc1 {[%clk 0:00:03.5]} 52. Qg3 {[%clk 0:00:03]}
52... Qc7 {[%clk 0:00:03.9]} 53. Bd4 {[%clk 0:00:02.8]} 53... Qc4 {[%clk
0:00:04.3]} 54. Be5 {[%clk 0:00:03.5]} 54... Qe4 {[%clk 0:00:04.6]} 55. Qg5
{[%clk 0:00:03.2]} 55... Qe1 {[%clk 0:00:04.3]} 56. Qg3 {[%clk 0:00:03.2]} 56...
Qh1+ {[%clk 0:00:04.1]} 57. Qh2 {[%clk 0:00:03.1]} 57... Qe1 {[%clk 0:00:05]}
58. g3 {[%clk 0:00:02]} 58... Qe2 {[%clk 0:00:05.5]} 59. Qg2 {[%clk 0:00:02.1]}
59... Qg4+ {[%clk 0:00:06.4]} 60. Kh2 {[%clk 0:00:02.3]} 60... Qd1 {[%clk
0:00:07.2]} 61. Qf2 {[%clk 0:00:02.5]} 61... Qd3 {[%clk 0:00:05.4]} 62. Qe1
{[%clk 0:00:01.8]} 62... Qc2+ {[%clk 0:00:05.5]} 63. Kh3 {[%clk 0:00:02.2]}
63... Qd3 {[%clk 0:00:06.4]} 64. Qg1 {[%clk 0:00:02.5]} 64... Qd5 {[%clk
0:00:07]} 65. Qg2 {[%clk 0:00:02.5]} 65... Qd1 {[%clk 0:00:07.1]} 66. g4 {[%clk
0:00:02.8]} 66... Qd3+ {[%clk 0:00:05.9]} 67. Qg3 {[%clk 0:00:02.9]} 67... fxg4+
{[%clk 0:00:06.5]} 68. Kxg4 {[%clk 0:00:03.5]} 68... Qf5+ {[%clk 0:00:07]} 69.
Kf3 {[%clk 0:00:04.4]} 69... Qd3+ {[%clk 0:00:07.8]} 70. Kg2 {[%clk 0:00:04.9]}
70... Qd2+ {[%clk 0:00:08.6]} 71. Qf2 {[%clk 0:00:05.3]} 71... Qd5+ {[%clk
0:00:08.8]} 72. Qf3 {[%clk 0:00:05.6]} 72... Qd2+ {[%clk 0:00:09.3]} 73. Kg3
{[%clk 0:00:06.5]} 73... Qe1+ {[%clk 0:00:09.7]} 74. Qf2 {[%clk 0:00:06.5]}
74... Qe4 {[%clk 0:00:08.4]} 75. Kh2 {[%clk 0:00:06.3]} 75... Qf5 {[%clk
0:00:08.6]} 76. Qa7 {[%clk 0:00:06]} 76... Qc2+ {[%clk 0:00:09]} 77. Kh3 {[%clk
0:00:06.4]} 77... Qd3+ {[%clk 0:00:09.3]} 78. Kg4 {[%clk 0:00:06.5]} 78... Qe2+
{[%clk 0:00:09.7]} 79. Kg3 {[%clk 0:00:07]} 79... Qe1+ {[%clk 0:00:09.9]} 80.
Qf2 {[%clk 0:00:06.2]} 80... Qe4 {[%clk 0:00:10.5]} 81. Qh2 {[%clk 0:00:05.1]}
81... Qd3+ {[%clk 0:00:10.5]} 82. Kg4 {[%clk 0:00:05.8]} 82... Qf5+ {[%clk
0:00:10]} 83. Kf3 {[%clk 0:00:06.1]} 83... Qd3+ {[%clk 0:00:10.9]} 84. Kg2
{[%clk 0:00:06.6]} 84... Qe2+ {[%clk 0:00:11.1]} 85. Kh1 {[%clk 0:00:07.1]}
85... Qf1+ {[%clk 0:00:11.3]} 86. Qg1 {[%clk 0:00:07.5]} 86... Qf3+ {[%clk
0:00:11.9]} 87. Kh2 {[%clk 0:00:07.6]} 87... Qe2+ {[%clk 0:00:10.7]} 88. Kh3
{[%clk 0:00:08.2]} 88... Qf3+ {[%clk 0:00:09.4]} 89. Kh2 {[%clk 0:00:06.5]}
89... Qe2+ {[%clk 0:00:09.9]} 90. Qg2 {[%clk 0:00:07.1]} 90... Qd3 {[%clk
0:00:08.7]} 91. Qf2 {[%clk 0:00:07]} 91... Qf5 {[%clk 0:00:08.8]} 92. Bd4 {[%clk
0:00:06.2]} 92... Qg4 {[%clk 0:00:09.1]} 93. Be3 {[%clk 0:00:06.2]} 93... Qf5
{[%clk 0:00:09.1]} 94. Qe1 {[%clk 0:00:05.6]} 94... Qc2+ {[%clk 0:00:08.7]} 95.
Bf2 {[%clk 0:00:04.9]} 95... Qf5 {[%clk 0:00:08.2]} 96. Qe3 {[%clk 0:00:05.3]}
96... Qg4 {[%clk 0:00:07.9]} 97. Qg3 {[%clk 0:00:05.1]} 97... Qe2 {[%clk
0:00:08.3]} 98. Kh3 {[%clk 0:00:05]} 98... Qf1+ {[%clk 0:00:08.3]} 99. Qg2
{[%clk 0:00:04.9]} 99... Qd3+ {[%clk 0:00:08.9]} 100. Kh2 {[%clk 0:00:03.9]}
100... Qd2 {[%clk 0:00:08.5]} 101. Qg3 {[%clk 0:00:03.6]} 101... Qe2 {[%clk
0:00:08.4]} 102. Kg2 {[%clk 0:00:03.9]} 102... Qe4+ {[%clk 0:00:08.5]} 103. Kf1
{[%clk 0:00:04.3]} 103... Qb1+ {[%clk 0:00:08.5]} 104. Ke2 {[%clk 0:00:04.8]}
104... Qe4+ {[%clk 0:00:09]} 105. Be3 {[%clk 0:00:04.9]} 105... Qc2+ {[%clk
0:00:09.2]} 106. Bd2 {[%clk 0:00:05.4]} 106... Qc4+ {[%clk 0:00:09.1]} 107. Kd1
{[%clk 0:00:05.2]} 107... Qa4+ {[%clk 0:00:08.3]} 108. Ke1 {[%clk 0:00:04.9]}
108... Qe4+ {[%clk 0:00:08.7]} 109. Kf2 {[%clk 0:00:05.3]} 109... Qd4+ {[%clk
0:00:08.4]} 110. Be3 {[%clk 0:00:05.7]} 110... Qb2+ {[%clk 0:00:08.4]} 111. Kf3
{[%clk 0:00:06.3]} 111... Qb7+ {[%clk 0:00:08]} 112. Kf2 {[%clk 0:00:06]} 112...
Qh1 {[%clk 0:00:08.4]} 113. Ke2 {[%clk 0:00:02.3]} 113... Qb1 {[%clk 0:00:08.1]}
114. Qf2 {[%clk 0:00:03.2]} 114... Qc2+ {[%clk 0:00:08.4]} 115. Kf3 {[%clk
0:00:04.1]} 115... Qc6+ {[%clk 0:00:08.4]} 116. Kg3 {[%clk 0:00:04.6]} 116...
Qh1 {[%clk 0:00:08.6]} 117. Qf3 {[%clk 0:00:05]} 117... Qe1+ {[%clk 0:00:08.5]}
118. Bf2 {[%clk 0:00:05.1]} 1/2-1/2

[Event "Late-Titled-Tuesday-Blitz-May-28-2024"]
[Site "Chess.com"]
[Date "2024.05.28"]
[Round "10"]
[White "tactic"]
[Black "RAU4ever"]
[Result "1-0"]
[WhiteElo "2546"]
[BlackElo "2357"]
[TimeControl "180+1"]
[EndTime "15:49:37 PDT"]
[Termination "tactic won by resignation"]

1. Nf3 {[%clk 0:03:00.9]} 1... Nf6 {[%clk 0:02:58.8]} 2. g3 {[%clk 0:03:01.2]}
2... e6 {[%clk 0:02:59.2]} 3. Bg2 {[%clk 0:03:02.1]} 3... d5 {[%clk 0:02:59.8]}
4. O-O {[%clk 0:03:02.4]} 4... Be7 {[%clk 0:03:00.4]} 5. c4 {[%clk 0:03:03.2]}
5... dxc4 {[%clk 0:03:00.8]} 6. Na3 {[%clk 0:03:03.4]} 6... a6 {[%clk
0:02:54.3]} 7. Nxc4 {[%clk 0:03:03.8]} 7... O-O {[%clk 0:02:51.7]} 8. d4 {[%clk
0:03:03.9]} 8... c5 {[%clk 0:02:48.7]} 9. Be3 {[%clk 0:03:02]} 9... Nbd7 {[%clk
0:02:27.2]} 10. dxc5 {[%clk 0:02:58.9]} 10... Nxc5 {[%clk 0:02:22.4]} 11. Qxd8
{[%clk 0:02:52.2]} 11... Rxd8 {[%clk 0:02:23.3]} 12. Nb6 {[%clk 0:02:52.7]}
12... Ra7 {[%clk 0:02:00.9]} 13. Rac1 {[%clk 0:02:52.6]} 13... Ncd7 {[%clk
0:01:58.2]} 14. Nxc8 {[%clk 0:02:51.9]} 1-0

[Event "Late-Titled-Tuesday-Blitz-May-28-2024"]
[Site "Chess.com"]
[Date "2024.05.28"]
[Round "10"]
[White "betta2004"]
[Black "YellowJacek"]
[Result "1-0"]
[WhiteElo "2545"]
[BlackElo "2357"]
[TimeControl "180+1"]
[EndTime "15:50:32 PDT"]
[Termination "betta2004 won by resignation"]

1. d4 {[%clk 0:02:50.4]} 1... d5 {[%clk 0:02:59.7]} 2. c4 {[%clk 0:02:32.5]}
2... c6 {[%clk 0:02:59.8]} 3. Nc3 {[%clk 0:02:32.1]} 3... dxc4 {[%clk
0:02:59.1]} 4. Nf3 {[%clk 0:02:32]} 4... Nf6 {[%clk 0:02:58.1]} 5. a4 {[%clk
0:02:30.5]} 5... Bf5 {[%clk 0:02:57.8]} 6. e3 {[%clk 0:02:30.7]} 6... e6 {[%clk
0:02:57.6]} 7. Bxc4 {[%clk 0:02:31.3]} 7... Bb4 {[%clk 0:02:56.3]} 8. O-O {[%clk
0:02:31.7]} 8... O-O {[%clk 0:02:54.4]} 9. h3 {[%clk 0:02:31.1]} 9... Nbd7
{[%clk 0:02:47.3]} 10. Qe2 {[%clk 0:02:31.1]} 10... Bg6 {[%clk 0:02:31.6]} 11.
Bd3 {[%clk 0:02:25.5]} 11... Bxd3 {[%clk 0:02:28]} 12. Qxd3 {[%clk 0:02:26.4]}
12... Re8 {[%clk 0:02:28.4]} 13. e4 {[%clk 0:02:26.6]} 13... Nc5 {[%clk
0:02:23.4]} 14. Qc4 {[%clk 0:02:25.2]} 14... Bxc3 {[%clk 0:02:16.6]} 15. dxc5
{[%clk 0:02:25.2]} 15... Ba5 {[%clk 0:02:08.6]} 16. Bg5 {[%clk 0:02:22.8]} 16...
h6 {[%clk 0:02:02.5]} 17. Bh4 {[%clk 0:02:22.3]} 17... Bc7 {[%clk 0:01:59.4]}
18. Rad1 {[%clk 0:02:16]} 18... Qe7 {[%clk 0:01:59.6]} 19. e5 {[%clk 0:02:15.9]}
1-0

[Event "Late-Titled-Tuesday-Blitz-May-28-2024"]
[Site "Chess.com"]
[Date "2024.05.28"]
[Round "10"]
[White "Mikhail_Golubev"]
[Black "lrjchess"]
[Result "1-0"]
[WhiteElo "2639"]
[BlackElo "2500"]
[TimeControl "180+1"]
[EndTime "15:51:13 PDT"]
[Termination "Mikhail_Golubev won by resignation"]

1. e4 {[%clk 0:03:00.9]} 1... d5 {[%clk 0:02:58.9]} 2. exd5 {[%clk 0:03:00.1]}
2... Nf6 {[%clk 0:02:59.3]} 3. Nf3 {[%clk 0:03:00.1]} 3... Bg4 {[%clk
0:02:59.7]} 4. h3 {[%clk 0:02:55.9]} 4... Bxf3 {[%clk 0:02:58.5]} 5. Qxf3 {[%clk
0:02:55.7]} 5... Qxd5 {[%clk 0:02:59.4]} 6. Qxd5 {[%clk 0:02:45.1]} 6... Nxd5
{[%clk 0:03:00.3]} 7. g3 {[%clk 0:02:44.7]} 7... Nb4 {[%clk 0:02:59]} 8. Na3
{[%clk 0:02:43.9]} 8... e5 {[%clk 0:02:57.6]} 9. c3 {[%clk 0:02:35.2]} 9... N4c6
{[%clk 0:02:53.2]} 10. Nb5 {[%clk 0:02:23.8]} 10... Na6 {[%clk 0:02:52.4]} 11.
Bg2 {[%clk 0:02:23.4]} 11... O-O-O {[%clk 0:02:51.8]} 12. b4 {[%clk 0:02:06.4]}
12... Nab8 {[%clk 0:02:48.2]} 13. a4 {[%clk 0:01:57.6]} 13... f5 {[%clk
0:02:47.8]} 14. a5 {[%clk 0:01:41.2]} 14... e4 {[%clk 0:02:46.2]} 15. d4 {[%clk
0:01:25.3]} 15... exd3 {[%clk 0:02:41.7]} 16. Bf4 {[%clk 0:01:24.6]} 16... a6
{[%clk 0:02:25.1]} 17. Na3 {[%clk 0:01:24.3]} 17... Bd6 {[%clk 0:02:24.2]} 18.
Bxd6 {[%clk 0:01:16]} 18... Rhe8+ {[%clk 0:02:24]} 19. Kd2 {[%clk 0:01:14.8]}
19... Re2+ {[%clk 0:02:23.4]} 20. Kxd3 {[%clk 0:01:06.6]} 20... Rxd6+ {[%clk
0:02:24.3]} 21. Kxe2 {[%clk 0:01:06.3]} 1-0

[Event "Late-Titled-Tuesday-Blitz-May-28-2024"]
[Site "Chess.com"]
[Date "2024.05.28"]
[Round "10"]
[White "dolynachess"]
[Black "CheckBits"]
[Result "0-1"]
[WhiteElo "2504"]
[BlackElo "2416"]
[TimeControl "180+1"]
[EndTime "15:51:36 PDT"]
[Termination "CheckBits won by resignation"]

1. d4 {[%clk 0:03:00.9]} 1... d5 {[%clk 0:03:00.2]} 2. c4 {[%clk 0:02:53.9]}
2... dxc4 {[%clk 0:03:01.1]} 3. Nf3 {[%clk 0:02:53.8]} 3... a6 {[%clk 0:03:01]}
4. g3 {[%clk 0:02:54.1]} 4... b5 {[%clk 0:03:00.1]} 5. a4 {[%clk 0:02:51.3]}
5... Bb7 {[%clk 0:03:00.5]} 6. Bg2 {[%clk 0:02:49.9]} 6... e6 {[%clk 0:02:59.1]}
7. O-O {[%clk 0:02:49.6]} 7... Nd7 {[%clk 0:02:58.8]} 8. Nc3 {[%clk 0:02:49.1]}
8... b4 {[%clk 0:02:56.2]} 9. Na2 {[%clk 0:02:48.9]} 9... a5 {[%clk 0:02:51.7]}
10. Bg5 {[%clk 0:02:41.8]} 10... Be7 {[%clk 0:02:49.7]} 11. Bxe7 {[%clk
0:02:41.7]} 11... Nxe7 {[%clk 0:02:50]} 12. Rc1 {[%clk 0:02:38.3]} 12... Bd5
{[%clk 0:02:47.6]} 13. Ne5 {[%clk 0:01:38.1]} 13... Nxe5 {[%clk 0:02:32.7]} 14.
dxe5 {[%clk 0:01:37.8]} 14... c3 {[%clk 0:02:17.6]} 15. Bxd5 {[%clk 0:01:29.2]}
15... Qxd5 {[%clk 0:02:17.3]} 16. Qxd5 {[%clk 0:01:25.4]} 16... exd5 {[%clk
0:02:13]} 17. bxc3 {[%clk 0:01:25.4]} 17... b3 {[%clk 0:02:12.7]} 18. c4 {[%clk
0:01:09.2]} 18... bxa2 {[%clk 0:02:11.8]} 19. cxd5 {[%clk 0:01:09.4]} 19... Nxd5
{[%clk 0:02:10.6]} 20. e4 {[%clk 0:01:04.7]} 20... Nb4 {[%clk 0:02:07.2]} 21.
Rxc7 {[%clk 0:01:04.5]} 21... O-O {[%clk 0:02:06.5]} 0-1

[Event "Late-Titled-Tuesday-Blitz-May-28-2024"]
[Site "Chess.com"]
[Date "2024.05.28"]
[Round "10"]
[White "Dacean99"]
[Black "giomar27"]
[Result "1-0"]
[WhiteElo "2599"]
[BlackElo "2471"]
[TimeControl "180+1"]
[EndTime "15:51:59 PDT"]
[Termination "Dacean99 won by resignation"]

1. e4 {[%clk 0:02:57.8]} 1... e5 {[%clk 0:02:59.9]} 2. Nf3 {[%clk 0:02:56.9]}
2... Nc6 {[%clk 0:03:00.5]} 3. d4 {[%clk 0:02:56.7]} 3... exd4 {[%clk
0:03:00.2]} 4. Bc4 {[%clk 0:02:57.3]} 4... Nf6 {[%clk 0:02:59.4]} 5. e5 {[%clk
0:02:57.5]} 5... d5 {[%clk 0:02:59.4]} 6. Bb5 {[%clk 0:02:57.3]} 6... Ne4 {[%clk
0:02:59.7]} 7. Nxd4 {[%clk 0:02:57.3]} 7... Bc5 {[%clk 0:03:00.4]} 8. Be3 {[%clk
0:02:56.4]} 8... Bd7 {[%clk 0:02:53.4]} 9. Bxc6 {[%clk 0:02:51.2]} 9... bxc6
{[%clk 0:02:53.4]} 10. O-O {[%clk 0:02:48.9]} 10... O-O {[%clk 0:02:53.2]} 11.
f3 {[%clk 0:02:45.4]} 11... Ng5 {[%clk 0:02:52.1]} 12. f4 {[%clk 0:02:45.9]}
12... Ne4 {[%clk 0:02:50.2]} 13. Nd2 {[%clk 0:02:46.4]} 13... Nxd2 {[%clk
0:02:47.6]} 14. Qxd2 {[%clk 0:02:47.3]} 14... Qe8 {[%clk 0:02:47.5]} 15. Nb3
{[%clk 0:02:45.3]} 15... Bb6 {[%clk 0:02:42.6]} 16. Bc5 {[%clk 0:02:42.7]} 16...
f6 {[%clk 0:02:36.2]} 17. Rae1 {[%clk 0:02:39.7]} 17... fxe5 {[%clk 0:02:33.1]}
18. Rxe5 {[%clk 0:02:37.2]} 18... Qg6 {[%clk 0:02:29.2]} 19. a4 {[%clk
0:02:34.2]} 19... Rae8 {[%clk 0:02:01.3]} 20. a5 {[%clk 0:02:19.9]} 20... Bxc5+
{[%clk 0:02:00.8]} 21. Nxc5 {[%clk 0:02:16.8]} 21... Rxe5 {[%clk 0:02:01.4]} 22.
fxe5 {[%clk 0:02:01.5]} 22... Rxf1+ {[%clk 0:02:01.1]} 23. Kxf1 {[%clk
0:02:02.3]} 23... Bf5 {[%clk 0:01:36.3]} 24. c3 {[%clk 0:01:58.2]} 24... Kf7
{[%clk 0:01:34.4]} 25. Qf4 {[%clk 0:01:55.8]} 25... Ke7 {[%clk 0:01:33.1]} 26.
e6 {[%clk 0:01:50.4]} 26... Bd3+ {[%clk 0:01:32.4]} 27. Ke1 {[%clk 0:01:47.4]}
27... Kd8 {[%clk 0:01:18.4]} 28. Qf8+ {[%clk 0:01:46.2]} 1-0